Workbook

Sheet Entrate
A2: Prospetto di cui all'articolo 8, comma 1, del Decreto Legge 24 aprile 2014, n. 66
A4: Entrate
B5: DATI DI RENDICONTO ANNO | C5: 2020
A7: Titolo Tipologia | B7: Denominazione | C7: COMPETENZA | D7: CASSA
B8: Fondo pluriennale vincolato per spese correnti | C8: 214145.25
B9: Fondo pluriennale vincolato per spese in conto capitale | C9: 2121652.52
B10: Utilizzo Risultato di Amministrazione | C10: 1125456.71
B11: Fondo di Cassa all'1/1/esercizio di riferimento | D11: 6977425.21
A13: TITOLO 1 | B13: Entrate correnti di natura tributaria, contributiva e perequativa
A14: 10101 | B14: Tipologia 101: Imposte, tasse e proventi assimilati | C14: 5286037.1 | D14: 5620139.2
A15: 10102 | B15: Tipologia 102: Tributi destinati al finanziamento della sanità | C15: 0 | D15: 0
A16: 10103 | B16: Tipologia 103: Tributi devoluti e regolati alle autonomie speciali | C16: 0 | D16: 0
A17: 10104 | B17: Tipologia 104: Compartecipazioni di tributi | C17: 25636.39 | D17: 25636.39
A18: 10301 | B18: Tipologia 301: Fondi perequativi da Amministrazioni Centrali | C18: 2025449 | D18: 1933358.37
A19: 10302 | B19: Tipologia 302: Fondi perequativi dalla Regione o Provincia autonoma | C19: 0 | D19: 0
A20: 10000 | B20: TOTALE TITOLO 1: Entrate correnti di natura tributaria, contributiva e perequativa | C20: =SUM(C14:C19) -> 7337122.49 | D20: =SUM(D14:D19) -> 7579133.96
A22: TITOLO 2 | B22: Trasferimenti correnti
A23: 20101 | B23: Tipologia 101: Trasferimenti correnti da Amministrazioni pubbliche | C23: 1917735.9 | D23: 1900702.77
A24: 20102 | B24: Tipologia 102: Trasferimenti correnti da Famiglie | C24: 5050 | D24: 5050
A25: 20103 | B25: Tipologia 103: Trasferimenti correnti da Imprese | C25: 0 | D25: 0
A26: 20104 | B26: Tipologia 104: Trasferimenti correnti da Istituzioni Sociali Private | C26: 0 | D26: 0
A27: 20105 | B27: Tipologia 105: Trasferimenti correnti dall'Unione europea e dal Resto del Mondo | C27: 0 | D27: 0
A28: 20000 | B28: TOTALE TITOLO 2: Trasferimenti correnti | C28: =SUM(C23:C27) -> 1922785.9 | D28: =SUM(D23:D27) -> 1905752.77
A30: TITOLO 3 | B30: Entrate extratributarie
A31: 30100 | B31: Tipologia 100: Vendita di beni e servizi e proventi derivanti dalla gestione dei beni | C31: 947113.3 | D31: 1151870.17
A32: 30200 | B32: Tipologia 200: Proventi derivanti dall'attività di controllo e repressione delle irregolarità e degli illeciti | C32: 6000 | D32: 18060.95
A33: 30300 | B33: Tipologia 300: Interessi attivi | C33: 3.08 | D33: 3.65
A34: 30400 | B34: Tipologia 400: Altre entrate da redditi da capitale | C34: 67525.38 | D34: 67525.38
A35: 30500 | B35: Tipologia 500: Rimborsi e altre entrate correnti | C35: 413111.91 | D35: 561104.61
A36: 30000 | B36: TOTALE TITOLO 3: Entrate extratributarie | C36: =SUM(C31:C35) -> 1433753.67 | D36: =SUM(D31:D35) -> 1798564.76
A38: TITOLO 4 | B38: Entrate in conto capitale
A39: 40100 | B39: Tipologia 100: Tributi in conto capitale | C39: 0 | D39: 0
A40: 40200 | B40: Tipologia 200: Contributi agli investimenti | C40: 1581307.01 | D40: 179425.85
A41: 40300 | B41: Tipologia 300: Altri trasferimenti in conto capitale | C41: 2500 | D41: 2500
A42: 40400 | B42: Tipologia 400: Entrate da alienazione di beni materiali e immateriali | C42: 115242.04 | D42: 115242.04
A43: 40500 | B43: Tipologia 500: Altre entrate in conto capitale | C43: 960390.41 | D43: 960390.41
A44: 40000 | B44: TOTALE TITOLO 4: Entrate in conto capitale | C44: =SUM(C39:C43) -> 2659439.46 | D44: =SUM(D39:D43) -> 1257558.3
A46: TITOLO 5 | B46: Entrate da riduzione di attività finanziarie
A47: 50100 | B47: Tipologia 100: Alienazione di attività finanziarie | C47: 0 | D47: 0
A48: 50200 | B48: Tipologia 200: Riscossione di crediti di breve termine | C48: 0 | D48: 0
A49: 50300 | B49: Tipologia 300: Riscossione crediti di medio-lungo termine | C49: 0 | D49: 0
A50: 50400 | B50: Tipologia 400: Altre entrate per riduzione di attività finanziarie | C50: 0 | D50: 0
A51: 50000 | B51: TOTALE TITOLO 5: Entrate da riduzione di attività finanziarie | C51: =SUM(C47:C50) -> 0 | D51: =SUM(D47:D50) -> 0
A53: TITOLO 6 | B53: Accensione prestiti
A54: 60100 | B54: Tipologia 100: Alienazione di attività finanziarie | C54: 0 | D54: 0
A55: 60200 | B55: Tipologia 200: Riscossione di crediti di breve termine | C55: 0 | D55: 0
A56: 60300 | B56: Tipologia 300: Riscossione crediti di medio-lungo termine | C56: 0 | D56: 0
A57: 60400 | B57: Tipologia 400: Altre entrate per riduzione di attività finanziarie | C57: 0 | D57: 0
A58: 60000 | B58: TOTALE TITOLO 6: Accensione prestiti | C58: =SUM(C54:C57) -> 0 | D58: =SUM(D54:D57) -> 0
A60: TITOLO 7 | B60: Anticipazioni da istituto tesoriere/cassiere
A61: 70100 | B61: Tipologia 100: Anticipazioni da istituto tesoriere/cassiere | C61: 0 | D61: 0
A62: 70000 | B62: TOTALE TITOLO 7: Anticipazioni da istituto tesoriere/cassiere | C62: =SUM(C61) -> 0 | D62: =SUM(D61) -> 0
A64: TITOLO 9 | B64: Entrate per conto terzi e partite di giro
A65: 90100 | B65: Tipologia 100: Entrate per partite di giro | C65: 892764.87 | D65: 892698.36
A66: 90200 | B66: Tipologia 200: Entrate per conto terzi | C66: 121358.83 | D66: 124968.16
A67: 90000 | B67: TOTALE TITOLO 9: Entrate per conto terzi e partite di giro | C67: =SUM(C65:C66) -> 1014123.7 | D67: =SUM(D65:D66) -> 1017666.52
B68: TOTALE TITOLI | C68: =+C20+C28+C36+C44+C51+C58+C62+C67 -> 14367225.22 | D68: =+D20+D28+D36+D44+D51+D58+D62+D67 -> 13558676.31
B69: TOTALE GENERALE DELLE ENTRATE | C69: =+C68+C8+C9+C10 -> 17828479.7 | D69: =+D68+D11 -> 20536101.52
B70: DISAVANZO FORMATOSI NELL'ESERCIZIO (Totale generale delle spese di competenza - Totale generale delle entrate di competenza) | C70: =IF(Spese!BU57>Entrate!C69,Spese!BU57-Entrate!C69,0) -> 0 | D70: =IF(Spese!BW57>Entrate!D69,Spese!BW57-Entrate!D69,0) -> 0

Sheet Spese
C3: Prospetto di cui all'articolo 8, comma 1, del Decreto Legge 24 aprile 2014, n. 66
B4: Spese
C5: DATI DI RENDICONTO ANNO | D5: =Entrate!C5 -> 2020
B7: TITOLI E MACROAGGREGATI DI SPESA/MISSIONI | C7: 1 | F7: 2 | I7: 3 | L7: 4 | O7: 5 | R7: 6 | U7: 7 | X7: 8 | AA7: 9 | AD7: 10 | AG7: 11 | AJ7: 12 | AM7: 13 | AP7: 14 | AS7: 15 | AV7: 16 | AY7: 17 | BB7: 18 | BE7: 19 | BH7: 20 | BK7: 50 | BN7: 60 | BQ7: 99 | BT7: Ripiano disavanzo | BU7: Totale generale delle spese
C8: Servizi istituzionali, generali e di gestione | F8: Giustizia | I8: Ordine pubblico e sicurezza | L8: Istruzione e diritto allo studio | O8: Tutela e valorizzazione dei beni e delle attività culturali | R8: Politiche giovanili, sport e tempo libero | U8: Turismo | X8: Assetto del territorio ed edilizia abitativa | AA8: Sviluppo sostenibile e tutela del territorio e dell'ambiente | AD8: Trasporti e diritto alla mobilità | AG8: Soccorso civile | AJ8: Diritti sociali, politiche sociali e famiglia | AM8: Tutela della salute | AP8: Sviluppo economico e competitività | AS8: Politiche per il lavoro e la formazione professionale | AV8: Agricoltura, politiche agroalimentari e pesca | AY8: Energia e diversificazione delle fonti energetiche | BB8: Relazioni con le altre autonomie territoriali e locali | BE8: Relazioni internazionali | BH8: Fondi e accantonamenti | BK8: Debito pubblico | BN8: Anticipazioni finanziarie | BQ8: Servizi per conto terzi
C9: Competenza | E9: Cassa | F9: Competenza | H9: Cassa | I9: Competenza | K9: Cassa | L9: Competenza | N9: Cassa | O9: Competenza | Q9: Cassa | R9: Competenza | T9: Cassa | U9: Competenza | W9: Cassa | X9: Competenza | Z9: Cassa | AA9: Competenza | AC9: Cassa | AD9: Competenza | AF9: Cassa | AG9: Competenza | AI9: Cassa | AJ9: Competenza | AL9: Cassa | AM9: Competenza | AO9: Cassa | AP9: Competenza | AR9: Cassa | AS9: Competenza | AU9: Cassa | AV9: Competenza | AX9: Cassa | AY9: Competenza | BA9: Cassa | BB9: Competenza | BD9: Cassa | BE9: Competenza | BG9: Cassa | BH9: Competenza | BJ9: Cassa | BK9: Competenza | BM9: Cassa | BN9: Competenza | BP9: Cassa | BQ9: Competenza | BS9: Cassa | BT9: Competenza | BU9: Competenza | BW9: Cassa
C10: Impegni | D10: fondo pluriennale vincolato | F10: Impegni | G10: fondo pluriennale vincolato | I10: Impegni | J10: fondo pluriennale vincolato | L10: Impegni | M10: fondo pluriennale vincolato | O10: Impegni | P10: fondo pluriennale vincolato | R10: Impegni | S10: fondo pluriennale vincolato | U10: Impegni | V10: fondo pluriennale vincolato | X10: Impegni | Y10: fondo pluriennale vincolato | AA10: Impegni | AB10: fondo pluriennale vincolato | AD10: Impegni | AE10: fondo pluriennale vincolato | AG10: Impegni | AH10: fondo pluriennale vincolato | AJ10: Impegni | AK10: fondo pluriennale vincolato | AM10: Impegni | AN10: fondo pluriennale vincolato | AP10: Impegni | AQ10: fondo pluriennale vincolato | AS10: Impegni | AT10: fondo pluriennale vincolato | AV10: Impegni | AW10: fondo pluriennale vincolato | AY10: Impegni | AZ10: fondo pluriennale vincolato | BB10: Impegni | BC10: fondo pluriennale vincolato | BE10: Impegni | BF10: fondo pluriennale vincolato | BH10: Impegni | BI10: fondo pluriennale vincolato | BK10: Impegni | BL10: fondo pluriennale vincolato | BN10: Impegni | BO10: fondo pluriennale vincolato | BQ10: Impegni | BR10: fondo pluriennale vincolato | BV10: di cui fondo pluriennale vincolato
B12: RIPIANO DISAVANZO NELL'ESERCIZIO | BT12: 0 | BU12: =BT12 -> 0
B14: TITOLO 1 - Spese correnti
A15: 101 | B15: Redditi da lavoro dipendente | C15: 665649.36 | D15: 0 | E15: 683441.05 | F15: 0 | G15: 0 | H15: 0 | I15: 0 | J15: 0 | K15: 0 | L15: 142449.55 | M15: 0 | N15: 140982.4 | O15: 191206.69 | P15: 0 | Q15: 191206.69 | R15: 0 | S15: 0 | T15: 0 | U15: 59307.11 | V15: 0 | W15: 59307.11 | X15: 364011.74 | Y15: 0 | Z15: 360188.08 | AA15: 51965.56 | AB15: 0 | AC15: 52178.79 | AD15: 0 | AE15: 0 | AF15: 0 | AG15: 0 | AH15: 0 | AI15: 1.16 | AJ15: 159041.01 | AK15: 0 | AL15: 159041.01 | AM15: 0 | AN15: 0 | AO15: 0 | AP15: 0 | AQ15: 0 | AR15: 0 | AS15: 0 | AT15: 0 | AU15: 38.56 | AV15: 0 | AW15: 0 | AX15: 0 | AY15: 0 | AZ15: 0 | BA15: 0 | BB15: 0 | BC15: 0 | BD15: 0 | BE15: 0 | BF15: 0 | BG15: 0 | BH15: 0 | BI15: 0 | BJ15: 0 | BK15: 0 | BL15: 0 | BM15: 0 | BN15: 0 | BO15: 0 | BP15: 0 | BQ15: 0 | BR15: 0 | BS15: 0 | BU15: =+C15+F15+I15+L15+O15+R15+U15+X15+AA15+AD15+AG15+AJ15+AM15+AP15+AS15+AV15+AY15+BB15+BE15+BH15+BK15+BN15+BQ15 -> 1633631.02 | BV15: =+D15+G15+J15+M15+P15+S15+V15+Y15+AB15+AE15+AH15+AK15+AN15+AQ15+AT15+AW15+AZ15+BC15+BF15+BI15+BL15+BO15+BR15 -> 0 | BW15: 1646384.85
A16: =A15 + 1 -> 102 | B16: Imposte e tasse a carico dell'ente | C16: 112221.61 | D16: 0 | E16: 112774.76 | F16: 0 | G16: 0 | H16: 0 | I16: 0 | J16: 0 | K16: 0 | L16: 9529.4 | M16: 0 | N16: 9292.13 | O16: 12818.57 | P16: 0 | Q16: 12818.57 | R16: 0 | S16: 0 | T16: 0 | U16: 3986.36 | V16: 0 | W16: 3986.36 | X16: 14315.91 | Y16: 0 | Z16: 14053.38 | AA16: 4257.25 | AB16: 0 | AC16: 4271.89 | AD16: 0 | AE16: 0 | AF16: 0 | AG16: 0 | AH16: 0 | AI16: 0 | AJ16: 0 | AK16: 0 | AL16: 0 | AM16: 0 | AN16: 0 | AO16: 0 | AP16: 0 | AQ16: 0 | AR16: 0 | AS16: 0 | AT16: 0 | AU16: 0 | AV16: 0 | AW16: 0 | AX16: 0 | AY16: 0 | AZ16: 0 | BA16: 0 | BB16: 0 | BC16: 0 | BD16: 0 | BE16: 0 | BF16: 0 | BG16: 0 | BH16: 0 | BI16: 0 | BJ16: 0 | BK16: 0 | BL16: 0 | BM16: 0 | BN16: 0 | BO16: 0 | BP16: 0 | BQ16: 0 | BR16: 0 | BS16: 0 | BU16: =+C16+F16+I16+L16+O16+R16+U16+X16+AA16+AD16+AG16+AJ16+AM16+AP16+AS16+AV16+AY16+BB16+BE16+BH16+BK16+BN16+BQ16 -> 157129.1 | BV16: 0 | BW16: 157197.09
A17: =A16 + 1 -> 103 | B17: Acquisto di beni e servizi | C17: 632793.77 | D17: 0 | E17: 595759.31 | F17: 0 | G17: 0 | H17: 0 | I17: 0 | J17: 0 | K17: 0 | L17: 897155.37 | M17: 0 | N17: 950074.96 | O17: 365852.07 | P17: 0 | Q17: 275911.15 | R17: 0 | S17: 0 | T17: 0 | U17: 0 | V17: 0 | W17: 6226.45 | X17: 5788 | Y17: 0 | Z17: 10647.57 | AA17: 168808.01 | AB17: 0 | AC17: 389855.44 | AD17: 663201 | AE17: 0 | AF17: 663201 | AG17: 274523.77 | AH17: 0 | AI17: 217922.74 | AJ17: 314369.06 | AK17: 0 | AL17: 364589.37 | AM17: 54562.37 | AN17: 0 | AO17: 24836.06 | AP17: 855.15 | AQ17: 0 | AR17: 855.15 | AS17: 4500 | AT17: 0 | AU17: 0 | AV17: 0 | AW17: 0 | AX17: 0 | AY17: 0 | AZ17: 0 | BA17: 0 | BB17: 0 | BC17: 0 | BD17: 0 | BE17: 0 | BF17: 0 | BG17: 0 | BH17: 0 | BI17: 0 | BJ17: 0 | BK17: 0 | BL17: 0 | BM17: 0 | BN17: 0 | BO17: 0 | BP17: 0 | BQ17: 0 | BR17: 0 | BS17: 0 | BU17: 3382408.57 | BV17: 0 | BW17: 3499879.2
A18: 104 | B18: Trasferimenti correnti | C18: 1068533 | D18: 0 | E18: 1122148.51 | F18: 0 | G18: 0 | H18: 0 | I18: 324006.71 | J18: 0 | K18: 149190.86 | L18: 275532 | M18: 0 | N18: 267219.73 | O18: 61287.5 | P18: 0 | Q18: 34505.35 | R18: 108021 | S18: 0 | T18: 96321 | U18: 0 | V18: 0 | W18: 0 | X18: 0 | Y18: 0 | Z18: 0 | AA18: 89351 | AB18: 0 | AC18: 16000 | AD18: 34128.98 | AE18: 0 | AF18: 22990.52 | AG18: 2852 | AH18: 0 | AI18: 5250 | AJ18: 1486008.4 | AK18: 0 | AL18: 957394.59 | AM18: 0 | AN18: 0 | AO18: 0 | AP18: 55129 | AQ18: 0 | AR18: 121853 | AS18: 0 | AT18: 0 | AU18: 0 | AV18: 0 | AW18: 0 | AX18: 0 | AY18: 0 | AZ18: 0 | BA18: 0 | BB18: 23587 | BC18: 0 | BD18: 78097 | BE18: 0 | BF18: 0 | BG18: 0 | BH18: 0 | BI18: 0 | BJ18: 0 | BK18: 0 | BL18: 0 | BM18: 0 | BN18: 0 | BO18: 0 | BP18: 0 | BQ18: 0 | BR18: 0 | BS18: 0 | BU18: 3528436.59 | BV18: 0 | BW18: 2870970.56
A19: 105 | B19: Trasferimenti di tributi | C19: 0 | D19: 0 | E19: 0 | F19: 0 | G19: 0 | H19: 0 | I19: 0 | J19: 0 | K19: 0 | L19: 0 | M19: 0 | N19: 0 | O19: 0 | P19: 0 | Q19: 0 | R19: 0 | S19: 0 | T19: 0 | U19: 0 | V19: 0 | W19: 0 | X19: 0 | Y19: 0 | Z19: 0 | AA19: 0 | AB19: 0 | AC19: 0 | AD19: 0 | AE19: 0 | AF19: 0 | AG19: 0 | AH19: 0 | AI19: 0 | AJ19: 0 | AK19: 0 | AL19: 0 | AM19: 0 | AN19: 0 | AO19: 0 | AP19: 0 | AQ19: 0 | AR19: 0 | AS19: 0 | AT19: 0 | AU19: 0 | AV19: 0 | AW19: 0 | AX19: 0 | AY19: 0 | AZ19: 0 | BA19: 0 | BB19: 0 | BC19: 0 | BD19: 0 | BE19: 0 | BF19: 0 | BG19: 0 | BH19: 0 | BI19: 0 | BJ19: 0 | BK19: 0 | BL19: 0 | BM19: 0 | BN19: 0 | BO19: 0 | BP19: 0 | BQ19: 0 | BR19: 0 | BS19: 0 | BU19: 0 | BV19: 0 | BW19: 0
A20: 106 | B20: Fondi perequativi | C20: 0 | D20: 0 | E20: 0 | F20: 0 | G20: 0 | H20: 0 | I20: 0 | J20: 0 | K20: 0 | L20: 0 | M20: 0 | N20: 0 | O20: 0 | P20: 0 | Q20: 0 | R20: 0 | S20: 0 | T20: 0 | U20: 0 | V20: 0 | W20: 0 | X20: 0 | Y20: 0 | Z20: 0 | AA20: 0 | AB20: 0 | AC20: 0 | AD20: 0 | AE20: 0 | AF20: 0 | AG20: 0 | AH20: 0 | AI20: 0 | AJ20: 0 | AK20: 0 | AL20: 0 | AM20: 0 | AN20: 0 | AO20: 0 | AP20: 0 | AQ20: 0 | AR20: 0 | AS20: 0 | AT20: 0 | AU20: 0 | AV20: 0 | AW20: 0 | AX20: 0 | AY20: 0 | AZ20: 0 | BA20: 0 | BB20: 0 | BC20: 0 | BD20: 0 | BE20: 0 | BF20: 0 | BG20: 0 | BH20: 0 | BI20: 0 | BJ20: 0 | BK20: 0 | BL20: 0 | BM20: 0 | BN20: 0 | BO20: 0 | BP20: 0 | BQ20: 0 | BR20: 0 | BS20: 0 | BU20: 0 | BV20: 0 | BW20: 0
A21: 107 | B21: Interessi passivi | C21: 0 | D21: 0 | E21: 0 | F21: 0 | G21: 0 | H21: 0 | I21: 0 | J21: 0 | K21: 0 | L21: 0 | M21: 0 | N21: 0 | O21: 0 | P21: 0 | Q21: 0 | R21: 0 | S21: 0 | T21: 0 | U21: 0 | V21: 0 | W21: 0 | X21: 0 | Y21: 0 | Z21: 0 | AA21: 0 | AB21: 0 | AC21: 0 | AD21: 144 | AE21: 0 | AF21: 144 | AG21: 0 | AH21: 0 | AI21: 0 | AJ21: 0 | AK21: 0 | AL21: 0 | AM21: 0 | AN21: 0 | AO21: 0 | AP21: 0 | AQ21: 0 | AR21: 0 | AS21: 0 | AT21: 0 | AU21: 0 | AV21: 0 | AW21: 0 | AX21: 0 | AY21: 0 | AZ21: 0 | BA21: 0 | BB21: 0 | BC21: 0 | BD21: 0 | BE21: 0 | BF21: 0 | BG21: 0 | BH21: 0 | BI21: 0 | BJ21: 0 | BK21: 0 | BL21: 0 | BM21: 0 | BN21: 0 | BO21: 0 | BP21: 0 | BQ21: 0 | BR21: 0 | BS21: 0 | BU21: 144 | BV21: 0 | BW21: 144
A22: 108 | B22: Altre spese per redditi da capitale | C22: 0 | D22: 0 | E22: 0 | F22: 0 | G22: 0 | H22: 0 | I22: 0 | J22: 0 | K22: 0 | L22: 0 | M22: 0 | N22: 0 | O22: 0 | P22: 0 | Q22: 0 | R22: 0 | S22: 0 | T22: 0 | U22: 0 | V22: 0 | W22: 0 | X22: 0 | Y22: 0 | Z22: 0 | AA22: 0 | AB22: 0 | AC22: 0 | AD22: 0 | AE22: 0 | AF22: 0 | AG22: 0 | AH22: 0 | AI22: 0 | AJ22: 0 | AK22: 0 | AL22: 0 | AM22: 0 | AN22: 0 | AO22: 0 | AP22: 0 | AQ22: 0 | AR22: 0 | AS22: 0 | AT22: 0 | AU22: 0 | AV22: 0 | AW22: 0 | AX22: 0 | AY22: 0 | AZ22: 0 | BA22: 0 | BB22: 0 | BC22: 0 | BD22: 0 | BE22: 0 | BF22: 0 | BG22: 0 | BH22: 0 | BI22: 0 | BJ22: 0 | BK22: 0 | BL22: 0 | BM22: 0 | BN22: 0 | BO22: 0 | BP22: 0 | BQ22: 0 | BR22: 0 | BS22: 0 | BU22: 0 | BV22: 0 | BW22: 0
A23: 109 | B23: Rimborsi e poste correttive delle entrate | C23: 108717.89 | D23: 0 | E23: 82335.29 | F23: 0 | G23: 0 | H23: 0 | I23: 0 | J23: 0 | K23: 0 | L23: 52894.51 | M23: 0 | N23: 49463.91 | O23: 0 | P23: 0 | Q23: 0 | R23: 0 | S23: 0 | T23: 0 | U23: 0 | V23: 0 | W23: 0 | X23: 0 | Y23: 0 | Z23: 0 | AA23: 0 | AB23: 0 | AC23: 0 | AD23: 0 | AE23: 0 | AF23: 0 | AG23: 0 | AH23: 0 | AI23: 0 | AJ23: 4690.33 | AK23: 0 | AL23: 4690.33 | AM23: 0 | AN23: 0 | AO23: 0 | AP23: 0 | AQ23: 0 | AR23: 0 | AS23: 0 | AT23: 0 | AU23: 0 | AV23: 0 | AW23: 0 | AX23: 0 | AY23: 0 | AZ23: 0 | BA23: 0 | BB23: 0 | BC23: 0 | BD23: 0 | BE23: 0 | BF23: 0 | BG23: 0 | BH23: 0 | BI23: 0 | BJ23: 0 | BK23: 0 | BL23: 0 | BM23: 0 | BN23: 0 | BO23: 0 | BP23: 0 | BQ23: 0 | BR23: 0 | BS23: 0 | BU23: 166302.73 | BV23: 0 | BW23: 136489.53
A24: 110 | B24: Altre spese correnti | C24: 175712.89 | D24: 166297.65 | E24: 180791.04 | F24: 0 | G24: 0 | H24: 0 | I24: 0 | J24: 0 | K24: 0 | L24: 538.27 | M24: 8627.79 | N24: 538.27 | O24: 943.78 | P24: 1323 | Q24: 943.78 | R24: 0 | S24: 0 | T24: 0 | U24: 239.36 | V24: 0 | W24: 239.36 | X24: 1669.94 | Y24: 38613.3 | Z24: 1669.94 | AA24: 244.01 | AB24: 0 | AC24: 244.01 | AD24: 0 | AE24: 0 | AF24: 0 | AG24: 0 | AH24: 0 | AI24: 0 | AJ24: 675.63 | AK24: 0 | AL24: 675.63 | AM24: 0 | AN24: 0 | AO24: 0 | AP24: 0 | AQ24: 0 | AR24: 0 | AS24: 0 | AT24: 0 | AU24: 0 | AV24: 0 | AW24: 0 | AX24: 0 | AY24: 0 | AZ24: 0 | BA24: 0 | BB24: 0 | BC24: 0 | BD24: 0 | BE24: 0 | BF24: 0 | BG24: 0 | BH24: 0 | BI24: 0 | BJ24: 0 | BK24: 0 | BL24: 0 | BM24: 0 | BN24: 0 | BO24: 0 | BP24: 0 | BQ24: 0 | BR24: 0 | BS24: 0 | BU24: 180023.88 | BV24: 214861.74 | BW24: 185102.03
A25: 100 | B25: TOTALE TITOLO 1 | C25: =SUM(C15:C24) -> 2763628.52 | D25: 166297.65 | E25: 2777249.96 | F25: 0 | G25: 0 | H25: 0 | I25: 324006.71 | J25: 0 | K25: 149190.86 | L25: 1378099.1 | M25: 8627.79 | N25: 1417571.4 | O25: 632108.61 | P25: 1323 | Q25: 515385.54 | R25: 108021 | S25: 0 | T25: 96321 | U25: 63532.83 | V25: 0 | W25: 69759.28 | X25: 385785.59 | Y25: 38613.3 | Z25: 386558.97 | AA25: 314625.83 | AB25: 0 | AC25: 462550.13 | AD25: 697473.98 | AE25: 0 | AF25: 686335.52 | AG25: 277375.77 | AH25: 0 | AI25: 223173.9 | AJ25: 1964784.43 | AK25: 0 | AL25: 1486390.93 | AM25: 54562.37 | AN25: 0 | AO25: 24836.06 | AP25: 55984.15 | AQ25: 0 | AR25: 122708.15 | AS25: 4500 | AT25: 0 | AU25: 38.56 | AV25: 0 | AW25: 0 | AX25: 0 | AY25: 0 | AZ25: 0 | BA25: 0 | BB25: 23587 | BC25: 0 | BD25: 78097 | BE25: 0 | BF25: 0 | BG25: 0 | BH25: 0 | BI25: 0 | BJ25: 0 | BK25: 0 | BL25: 0 | BM25: 0 | BN25: 0 | BO25: =SUM(BO15:BO24) -> 0 | BP25: 0 | BQ25: 0 | BR25: 0 | BS25: 0 | BU25: 9048075.89 | BV25: 214861.74 | BW25: 8496167.26
B27: TITOLO 2 - Spese in conto capitale
A28: 201 | B28: Tributi in conto capitale a carico dell'ente | C28: 0 | D28: 0 | E28: 0 | F28: 0 | G28: 0 | H28: 0 | I28: 0 | J28: 0 | K28: 0 | L28: 0 | M28: 0 | N28: 0 | O28: 0 | P28: 0 | Q28: 0 | R28: 0 | S28: 0 | T28: 0 | U28: 0 | V28: 0 | W28: 0 | X28: 0 | Y28: 0 | Z28: 0 | AA28: 0 | AB28: 0 | AC28: 0 | AD28: 0 | AE28: 0 | AF28: 0 | AG28: 0 | AH28: 0 | AI28: 0 | AJ28: 0 | AK28: 0 | AL28: 0 | AM28: 0 | AN28: 0 | AO28: 0 | AP28: 0 | AQ28: 0 | AR28: 0 | AS28: 0 | AT28: 0 | AU28: 0 | AV28: 0 | AW28: 0 | AX28: 0 | AY28: 0 | AZ28: 0 | BA28: 0 | BB28: 0 | BC28: 0 | BD28: 0 | BE28: 0 | BF28: 0 | BG28: 0 | BH28: 0 | BI28: 0 | BJ28: 0 | BK28: 0 | BL28: 0 | BM28: 0 | BN28: 0 | BO28: 0 | BP28: 0 | BQ28: 0 | BR28: 0 | BS28: 0 | BU28: =+C28+F28+I28+L28+O28+R28+U28+X28+AA28+AD28+AG28+AJ28+AM28+AP28+AS28+AV28+AY28+BB28+BE28+BH28+BK28+BN28+BQ28 -> 0 | BV28: =+D28+G28+J28+M28+P28+S28+V28+Y28+AB28+AE28+AH28+AK28+AN28+AQ28+AT28+AW28+AZ28+BC28+BF28+BI28+BL28+BO28+BR28 -> 0 | BW28: 0
A29: =A28 + 1 -> 202 | B29: Investimenti fissi lordi e acquisto di terreni | C29: 30000 | D29: 0 | E29: 0 | F29: 0 | G29: 0 | H29: 0 | I29: 0 | J29: 0 | K29: 0 | L29: 996059.12 | M29: 0 | N29: 127185.49 | O29: 5000 | P29: 0 | Q29: 0 | R29: 0 | S29: 0 | T29: 0 | U29: 0 | V29: 0 | W29: 0 | X29: 696020.39 | Y29: 0 | Z29: 78799.93 | AA29: 92550 | AB29: 0 | AC29: 0 | AD29: 90000 | AE29: 0 | AF29: 142101.7 | AG29: 26243.96 | AH29: 0 | AI29: 11643.73 | AJ29: 390000 | AK29: 0 | AL29: 0 | AM29: 0 | AN29: 0 | AO29: 0 | AP29: 0 | AQ29: 0 | AR29: 0 | AS29: 0 | AT29: 0 | AU29: 0 | AV29: 0 | AW29: 0 | AX29: 0 | AY29: 0 | AZ29: 0 | BA29: 0 | BB29: 0 | BC29: 0 | BD29: 0 | BE29: 0 | BF29: 0 | BG29: 0 | BH29: 0 | BI29: 0 | BJ29: 0 | BK29: 0 | BL29: 0 | BM29: 0 | BN29: 0 | BO29: 0 | BP29: 0 | BQ29: 0 | BR29: 0 | BS29: 0 | BU29: =+C29+F29+I29+L29+O29+R29+U29+X29+AA29+AD29+AG29+AJ29+AM29+AP29+AS29+AV29+AY29+BB29+BE29+BH29+BK29+BN29+BQ29 -> 2325873.47 | BV29: 0 | BW29: 359730.85
A30: =A29 + 1 -> 203 | B30: Contributi agli investimenti | C30: 0 | D30: 0 | E30: 0 | F30: 0 | G30: 0 | H30: 0 | I30: 0 | J30: 0 | K30: 0 | L30: 0 | M30: 0 | N30: 0 | O30: 84680 | P30: 0 | Q30: 55942.97 | R30: 0 | S30: 0 | T30: 0 | U30: 0 | V30: 0 | W30: 0 | X30: 0 | Y30: 0 | Z30: 0 | AA30: 23212.82 | AB30: 0 | AC30: 29308.32 | AD30: 0 | AE30: 0 | AF30: 0 | AG30: 1082500 | AH30: 0 | AI30: 1300476.4 | AJ30: 54192.97 | AK30: 0 | AL30: 47810.5 | AM30: 0 | AN30: 0 | AO30: 0 | AP30: 0 | AQ30: 0 | AR30: 0 | AS30: 0 | AT30: 0 | AU30: 0 | AV30: 0 | AW30: 0 | AX30: 0 | AY30: 0 | AZ30: 0 | BA30: 0 | BB30: 0 | BC30: 0 | BD30: 0 | BE30: 0 | BF30: 0 | BG30: 0 | BH30: 0 | BI30: 0 | BJ30: 0 | BK30: 0 | BL30: 0 | BM30: 0 | BN30: 0 | BO30: 0 | BP30: 0 | BQ30: 0 | BR30: 0 | BS30: 0 | BU30: =+C30+F30+I30+L30+O30+R30+U30+X30+AA30+AD30+AG30+AJ30+AM30+AP30+AS30+AV30+AY30+BB30+BE30+BH30+BK30+BN30+BQ30 -> 1244585.79 | BV30: 0 | BW30: 1433538.19
A31: =A30 + 1 -> 204 | B31: Altri trasferimenti in conto capitale | C31: 0 | D31: 0 | E31: 0 | F31: 0 | G31: 0 | H31: 0 | I31: 0 | J31: 0 | K31: 0 | L31: 0 | M31: 0 | N31: 0 | O31: 0 | P31: 0 | Q31: 0 | R31: 0 | S31: 0 | T31: 0 | U31: 0 | V31: 0 | W31: 0 | X31: 0 | Y31: 0 | Z31: 0 | AA31: 0 | AB31: 0 | AC31: 0 | AD31: 0 | AE31: 0 | AF31: 0 | AG31: 0 | AH31: 0 | AI31: 0 | AJ31: 0 | AK31: 0 | AL31: 0 | AM31: 0 | AN31: 0 | AO31: 0 | AP31: 0 | AQ31: 0 | AR31: 0 | AS31: 0 | AT31: 0 | AU31: 0 | AV31: 0 | AW31: 0 | AX31: 0 | AY31: 0 | AZ31: 0 | BA31: 0 | BB31: 0 | BC31: 0 | BD31: 0 | BE31: 0 | BF31: 0 | BG31: 0 | BH31: 0 | BI31: 0 | BJ31: 0 | BK31: 0 | BL31: 0 | BM31: 0 | BN31: 0 | BO31: 0 | BP31: 0 | BQ31: 0 | BR31: 0 | BS31: 0 | BU31: =+C31+F31+I31+L31+O31+R31+U31+X31+AA31+AD31+AG31+AJ31+AM31+AP31+AS31+AV31+AY31+BB31+BE31+BH31+BK31+BN31+BQ31 -> 0 | BV31: 0 | BW31: 0
A32: =A31 + 1 -> 205 | B32: Altre spese in conto capitale | C32: 0 | D32: 32452 | E32: 0 | F32: 0 | G32: 0 | H32: 0 | I32: 0 | J32: 0 | K32: 0 | L32: 0 | M32: 0 | N32: 0 | O32: 0 | P32: 300000 | Q32: 0 | R32: 0 | S32: 0 | T32: 0 | U32: 0 | V32: 0 | W32: 0 | X32: 0 | Y32: 198430.13 | Z32: 0 | AA32: 0 | AB32: 0 | AC32: 0 | AD32: 0 | AE32: 0 | AF32: 0 | AG32: 0 | AH32: 1659613.02 | AI32: 0 | AJ32: 0 | AK32: 0 | AL32: 0 | AM32: 0 | AN32: 0 | AO32: 0 | AP32: 0 | AQ32: 0 | AR32: 0 | AS32: 0 | AT32: 0 | AU32: 0 | AV32: 0 | AW32: 0 | AX32: 0 | AY32: 0 | AZ32: 0 | BA32: 0 | BB32: 0 | BC32: 0 | BD32: 0 | BE32: 0 | BF32: 0 | BG32: 0 | BH32: 0 | BI32: 0 | BJ32: 0 | BK32: 0 | BL32: 0 | BM32: 0 | BN32: 0 | BO32: 0 | BP32: 0 | BQ32: 0 | BR32: 0 | BS32: 0 | BU32: =+C32+F32+I32+L32+O32+R32+U32+X32+AA32+AD32+AG32+AJ32+AM32+AP32+AS32+AV32+AY32+BB32+BE32+BH32+BK32+BN32+BQ32 -> 0 | BV32: 2190495.15 | BW32: 0
A33: 200 | B33: TOTALE TITOLO 2 | C33: =SUM(C28:C32) -> 30000 | D33: 32452 | E33: 0 | F33: 0 | G33: 0 | H33: 0 | I33: 0 | J33: 0 | K33: 0 | L33: 996059.12 | M33: 0 | N33: 127185.49 | O33: 89680 | P33: 300000 | Q33: 55942.97 | R33: 0 | S33: 0 | T33: 0 | U33: 0 | V33: 0 | W33: 0 | X33: 696020.39 | Y33: 198430.13 | Z33: 78799.93 | AA33: 115762.82 | AB33: 0 | AC33: 29308.32 | AD33: 90000 | AE33: 0 | AF33: 142101.7 | AG33: 1108743.96 | AH33: 1659613.02 | AI33: 1312120.13 | AJ33: 444192.97 | AK33: 0 | AL33: 47810.5 | AM33: 0 | AN33: 0 | AO33: 0 | AP33: 0 | AQ33: 0 | AR33: 0 | AS33: 0 | AT33: 0 | AU33: 0 | AV33: 0 | AW33: 0 | AX33: 0 | AY33: 0 | AZ33: 0 | BA33: 0 | BB33: 0 | BC33: 0 | BD33: 0 | BE33: 0 | BF33: 0 | BG33: 0 | BH33: 0 | BI33: 0 | BJ33: 0 | BK33: 0 | BL33: 0 | BM33: 0 | BN33: 0 | BO33: =SUM(BO28:BO32) -> 0 | BP33: 0 | BQ33: 0 | BR33: 0 | BS33: 0 | BU33: 3570459.26 | BV33: 2190495.15 | BW33: 1793269.04
B35: TITOLO 3 - Spese per incremento di attività finanziarie
A36: 301 | B36: Acquisizioni di attività finanziarie | C36: 0 | D36: 0 | E36: 0 | F36: 0 | G36: 0 | H36: 0 | I36: 0 | J36: 0 | K36: 0 | L36: 0 | M36: 0 | N36: 0 | O36: 0 | P36: 0 | Q36: 0 | R36: 0 | S36: 0 | T36: 0 | U36: 0 | V36: 0 | W36: 0 | X36: 0 | Y36: 0 | Z36: 0 | AA36: 0 | AB36: 0 | AC36: 0 | AD36: 0 | AE36: 0 | AF36: 0 | AG36: 0 | AH36: 0 | AI36: 0 | AJ36: 0 | AK36: 0 | AL36: 0 | AM36: 0 | AN36: 0 | AO36: 0 | AP36: 0 | AQ36: 0 | AR36: 0 | AS36: 0 | AT36: 0 | AU36: 0 | AV36: 0 | AW36: 0 | AX36: 0 | AY36: 0 | AZ36: 0 | BA36: 0 | BB36: 0 | BC36: 0 | BD36: 0 | BE36: 0 | BF36: 0 | BG36: 0 | BH36: 0 | BI36: 0 | BJ36: 0 | BK36: 0 | BL36: 0 | BM36: 0 | BN36: 0 | BO36: 0 | BP36: 0 | BQ36: 0 | BR36: 0 | BS36: 0 | BU36: =+C36+F36+I36+L36+O36+R36+U36+X36+AA36+AD36+AG36+AJ36+AM36+AP36+AS36+AV36+AY36+BB36+BE36+BH36+BK36+BN36+BQ36 -> 0 | BV36: =+D36+G36+J36+M36+P36+S36+V36+Y36+AB36+AE36+AH36+AK36+AN36+AQ36+AT36+AW36+AZ36+BC36+BF36+BI36+BL36+BO36+BR36 -> 0 | BW36: 0
A37: =A36 + 1 -> 302 | B37: Concessione crediti di breve termine | C37: 0 | D37: 0 | E37: 0 | F37: 0 | G37: 0 | H37: 0 | I37: 0 | J37: 0 | K37: 0 | L37: 0 | M37: 0 | N37: 0 | O37: 0 | P37: 0 | Q37: 0 | R37: 0 | S37: 0 | T37: 0 | U37: 0 | V37: 0 | W37: 0 | X37: 0 | Y37: 0 | Z37: 0 | AA37: 0 | AB37: 0 | AC37: 0 | AD37: 0 | AE37: 0 | AF37: 0 | AG37: 0 | AH37: 0 | AI37: 0 | AJ37: 0 | AK37: 0 | AL37: 0 | AM37: 0 | AN37: 0 | AO37: 0 | AP37: 0 | AQ37: 0 | AR37: 0 | AS37: 0 | AT37: 0 | AU37: 0 | AV37: 0 | AW37: 0 | AX37: 0 | AY37: 0 | AZ37: 0 | BA37: 0 | BB37: 0 | BC37: 0 | BD37: 0 | BE37: 0 | BF37: 0 | BG37: 0 | BH37: 0 | BI37: 0 | BJ37: 0 | BK37: 0 | BL37: 0 | BM37: 0 | BN37: 0 | BO37: 0 | BP37: 0 | BQ37: 0 | BR37: 0 | BS37: 0 | BU37: =+C37+F37+I37+L37+O37+R37+U37+X37+AA37+AD37+AG37+AJ37+AM37+AP37+AS37+AV37+AY37+BB37+BE37+BH37+BK37+BN37+BQ37 -> 0 | BV37: 0 | BW37: 0
A38: =A37 + 1 -> 303 | B38: Concessione crediti di medio-lungo termine | C38: 0 | D38: 0 | E38: 0 | F38: 0 | G38: 0 | H38: 0 | I38: 0 | J38: 0 | K38: 0 | L38: 0 | M38: 0 | N38: 0 | O38: 0 | P38: 0 | Q38: 0 | R38: 0 | S38: 0 | T38: 0 | U38: 0 | V38: 0 | W38: 0 | X38: 0 | Y38: 0 | Z38: 0 | AA38: 0 | AB38: 0 | AC38: 0 | AD38: 0 | AE38: 0 | AF38: 0 | AG38: 0 | AH38: 0 | AI38: 0 | AJ38: 0 | AK38: 0 | AL38: 0 | AM38: 0 | AN38: 0 | AO38: 0 | AP38: 0 | AQ38: 0 | AR38: 0 | AS38: 0 | AT38: 0 | AU38: 0 | AV38: 0 | AW38: 0 | AX38: 0 | AY38: 0 | AZ38: 0 | BA38: 0 | BB38: 0 | BC38: 0 | BD38: 0 | BE38: 0 | BF38: 0 | BG38: 0 | BH38: 0 | BI38: 0 | BJ38: 0 | BK38: 0 | BL38: 0 | BM38: 0 | BN38: 0 | BO38: 0 | BP38: 0 | BQ38: 0 | BR38: 0 | BS38: 0 | BU38: =+C38+F38+I38+L38+O38+R38+U38+X38+AA38+AD38+AG38+AJ38+AM38+AP38+AS38+AV38+AY38+BB38+BE38+BH38+BK38+BN38+BQ38 -> 0 | BV38: 0 | BW38: 0
A39: =A38 + 1 -> 304 | B39: Altre spese per incremento di attività finanziarie | C39: 0 | D39: 0 | E39: 0 | F39: 0 | G39: 0 | H39: 0 | I39: 0 | J39: 0 | K39: 0 | L39: 0 | M39: 0 | N39: 0 | O39: 0 | P39: 0 | Q39: 0 | R39: 0 | S39: 0 | T39: 0 | U39: 0 | V39: 0 | W39: 0 | X39: 0 | Y39: 0 | Z39: 0 | AA39: 0 | AB39: 0 | AC39: 0 | AD39: 0 | AE39: 0 | AF39: 0 | AG39: 0 | AH39: 0 | AI39: 0 | AJ39: 0 | AK39: 0 | AL39: 0 | AM39: 0 | AN39: 0 | AO39: 0 | AP39: 0 | AQ39: 0 | AR39: 0 | AS39: 0 | AT39: 0 | AU39: 0 | AV39: 0 | AW39: 0 | AX39: 0 | AY39: 0 | AZ39: 0 | BA39: 0 | BB39: 0 | BC39: 0 | BD39: 0 | BE39: 0 | BF39: 0 | BG39: 0 | BH39: 0 | BI39: 0 | BJ39: 0 | BK39: 0 | BL39: 0 | BM39: 0 | BN39: 0 | BO39: 0 | BP39: 0 | BQ39: 0 | BR39: 0 | BS39: 0 | BU39: =+C39+F39+I39+L39+O39+R39+U39+X39+AA39+AD39+AG39+AJ39+AM39+AP39+AS39+AV39+AY39+BB39+BE39+BH39+BK39+BN39+BQ39 -> 0 | BV39: 0 | BW39: 0
A40: 300 | B40: TOTALE TITOLO 3 | C40: =SUM(C36:C39) -> 0 | D40: 0 | E40: 0 | F40: 0 | G40: 0 | H40: 0 | I40: 0 | J40: 0 | K40: 0 | L40: 0 | M40: 0 | N40: 0 | O40: 0 | P40: 0 | Q40: 0 | R40: 0 | S40: 0 | T40: 0 | U40: 0 | V40: 0 | W40: 0 | X40: 0 | Y40: 0 | Z40: 0 | AA40: 0 | AB40: 0 | AC40: 0 | AD40: 0 | AE40: 0 | AF40: 0 | AG40: 0 | AH40: 0 | AI40: 0 | AJ40: 0 | AK40: 0 | AL40: 0 | AM40: 0 | AN40: 0 | AO40: 0 | AP40: 0 | AQ40: 0 | AR40: 0 | AS40: 0 | AT40: 0 | AU40: 0 | AV40: 0 | AW40: 0 | AX40: 0 | AY40: 0 | AZ40: 0 | BA40: 0 | BB40: 0 | BC40: 0 | BD40: 0 | BE40: 0 | BF40: 0 | BG40: 0 | BH40: 0 | BI40: 0 | BJ40: 0 | BK40: 0 | BL40: 0 | BM40: 0 | BN40: 0 | BO40: =SUM(BO36:BO39) -> 0 | BP40: 0 | BQ40: 0 | BR40: 0 | BS40: 0 | BU40: 0 | BV40: 0 | BW40: 0
B42: TITOLO 4 - Rimborso di prestiti
A43: 401 | B43: Rimborso di titoli obbligazionari | C43: 0 | D43: 0 | E43: 0 | F43: 0 | G43: 0 | H43: 0 | I43: 0 | J43: 0 | K43: 0 | L43: 0 | M43: 0 | N43: 0 | O43: 0 | P43: 0 | Q43: 0 | R43: 0 | S43: 0 | T43: 0 | U43: 0 | V43: 0 | W43: 0 | X43: 0 | Y43: 0 | Z43: 0 | AA43: 0 | AB43: 0 | AC43: 0 | AD43: 0 | AE43: 0 | AF43: 0 | AG43: 0 | AH43: 0 | AI43: 0 | AJ43: 0 | AK43: 0 | AL43: 0 | AM43: 0 | AN43: 0 | AO43: 0 | AP43: 0 | AQ43: 0 | AR43: 0 | AS43: 0 | AT43: 0 | AU43: 0 | AV43: 0 | AW43: 0 | AX43: 0 | AY43: 0 | AZ43: 0 | BA43: 0 | BB43: 0 | BC43: 0 | BD43: 0 | BE43: 0 | BF43: 0 | BG43: 0 | BH43: 0 | BI43: 0 | BJ43: 0 | BK43: 0 | BL43: 0 | BM43: 0 | BN43: 0 | BO43: 0 | BP43: 0 | BQ43: 0 | BR43: 0 | BS43: 0 | BU43: =+C43+F43+I43+L43+O43+R43+U43+X43+AA43+AD43+AG43+AJ43+AM43+AP43+AS43+AV43+AY43+BB43+BE43+BH43+BK43+BN43+BQ43 -> 0 | BV43: =+D43+G43+J43+M43+P43+S43+V43+Y43+AB43+AE43+AH43+AK43+AN43+AQ43+AT43+AW43+AZ43+BC43+BF43+BI43+BL43+BO43+BR43 -> 0 | BW43: 0
A44: =A43 + 1 -> 402 | B44: Rimborso prestiti a breve termine | C44: 0 | D44: 0 | E44: 0 | F44: 0 | G44: 0 | H44: 0 | I44: 0 | J44: 0 | K44: 0 | L44: 0 | M44: 0 | N44: 0 | O44: 0 | P44: 0 | Q44: 0 | R44: 0 | S44: 0 | T44: 0 | U44: 0 | V44: 0 | W44: 0 | X44: 0 | Y44: 0 | Z44: 0 | AA44: 0 | AB44: 0 | AC44: 0 | AD44: 0 | AE44: 0 | AF44: 0 | AG44: 0 | AH44: 0 | AI44: 0 | AJ44: 0 | AK44: 0 | AL44: 0 | AM44: 0 | AN44: 0 | AO44: 0 | AP44: 0 | AQ44: 0 | AR44: 0 | AS44: 0 | AT44: 0 | AU44: 0 | AV44: 0 | AW44: 0 | AX44: 0 | AY44: 0 | AZ44: 0 | BA44: 0 | BB44: 0 | BC44: 0 | BD44: 0 | BE44: 0 | BF44: 0 | BG44: 0 | BH44: 0 | BI44: 0 | BJ44: 0 | BK44: 0 | BL44: 0 | BM44: 0 | BN44: 0 | BO44: 0 | BP44: 0 | BQ44: 0 | BR44: 0 | BS44: 0 | BU44: =+C44+F44+I44+L44+O44+R44+U44+X44+AA44+AD44+AG44+AJ44+AM44+AP44+AS44+AV44+AY44+BB44+BE44+BH44+BK44+BN44+BQ44 -> 0 | BV44: 0 | BW44: 0
A45: =A44 + 1 -> 403 | B45: Rimborso mutui e altri finanziamenti a medio lungo termine | C45: 0 | D45: 0 | E45: 0 | F45: 0 | G45: 0 | H45: 0 | I45: 0 | J45: 0 | K45: 0 | L45: 0 | M45: 0 | N45: 0 | O45: 0 | P45: 0 | Q45: 0 | R45: 0 | S45: 0 | T45: 0 | U45: 0 | V45: 0 | W45: 0 | X45: 0 | Y45: 0 | Z45: 0 | AA45: 0 | AB45: 0 | AC45: 0 | AD45: 0 | AE45: 0 | AF45: 0 | AG45: 0 | AH45: 0 | AI45: 0 | AJ45: 0 | AK45: 0 | AL45: 0 | AM45: 0 | AN45: 0 | AO45: 0 | AP45: 0 | AQ45: 0 | AR45: 0 | AS45: 0 | AT45: 0 | AU45: 0 | AV45: 0 | AW45: 0 | AX45: 0 | AY45: 0 | AZ45: 0 | BA45: 0 | BB45: 0 | BC45: 0 | BD45: 0 | BE45: 0 | BF45: 0 | BG45: 0 | BH45: 0 | BI45: 0 | BJ45: 0 | BK45: 160020 | BL45: 0 | BM45: 160020 | BN45: 0 | BO45: 0 | BP45: 0 | BQ45: 0 | BR45: 0 | BS45: 0 | BU45: =+C45+F45+I45+L45+O45+R45+U45+X45+AA45+AD45+AG45+AJ45+AM45+AP45+AS45+AV45+AY45+BB45+BE45+BH45+BK45+BN45+BQ45 -> 160020 | BV45: 0 | BW45: 160020
A46: =A45 + 1 -> 404 | B46: Rimborso di altre forme di indebitamento | C46: 0 | D46: 0 | E46: 0 | F46: 0 | G46: 0 | H46: 0 | I46: 0 | J46: 0 | K46: 0 | L46: 0 | M46: 0 | N46: 0 | O46: 0 | P46: 0 | Q46: 0 | R46: 0 | S46: 0 | T46: 0 | U46: 0 | V46: 0 | W46: 0 | X46: 0 | Y46: 0 | Z46: 0 | AA46: 0 | AB46: 0 | AC46: 0 | AD46: 0 | AE46: 0 | AF46: 0 | AG46: 0 | AH46: 0 | AI46: 0 | AJ46: 0 | AK46: 0 | AL46: 0 | AM46: 0 | AN46: 0 | AO46: 0 | AP46: 0 | AQ46: 0 | AR46: 0 | AS46: 0 | AT46: 0 | AU46: 0 | AV46: 0 | AW46: 0 | AX46: 0 | AY46: 0 | AZ46: 0 | BA46: 0 | BB46: 0 | BC46: 0 | BD46: 0 | BE46: 0 | BF46: 0 | BG46: 0 | BH46: 0 | BI46: 0 | BJ46: 0 | BK46: 0 | BL46: 0 | BM46: 0 | BN46: 0 | BO46: 0 | BP46: 0 | BQ46: 0 | BR46: 0 | BS46: 0 | BU46: =+C46+F46+I46+L46+O46+R46+U46+X46+AA46+AD46+AG46+AJ46+AM46+AP46+AS46+AV46+AY46+BB46+BE46+BH46+BK46+BN46+BQ46 -> 0 | BV46: 0 | BW46: 0
A47: 400 | B47: TOTALE TITOLO 4 | C47: =SUM(C43:C46) -> 0 | D47: 0 | E47: 0 | F47: 0 | G47: 0 | H47: 0 | I47: 0 | J47: 0 | K47: 0 | L47: 0 | M47: 0 | N47: 0 | O47: 0 | P47: 0 | Q47: 0 | R47: 0 | S47: 0 | T47: 0 | U47: 0 | V47: 0 | W47: 0 | X47: 0 | Y47: 0 | Z47: 0 | AA47: 0 | AB47: 0 | AC47: 0 | AD47: 0 | AE47: 0 | AF47: 0 | AG47: 0 | AH47: 0 | AI47: 0 | AJ47: 0 | AK47: 0 | AL47: 0 | AM47: 0 | AN47: 0 | AO47: 0 | AP47: 0 | AQ47: 0 | AR47: 0 | AS47: 0 | AT47: 0 | AU47: 0 | AV47: 0 | AW47: 0 | AX47: 0 | AY47: 0 | AZ47: 0 | BA47: 0 | BB47: 0 | BC47: 0 | BD47: 0 | BE47: 0 | BF47: 0 | BG47: 0 | BH47: 0 | BI47: 0 | BJ47: 0 | BK47: 160020 | BL47: 0 | BM47: 160020 | BN47: 0 | BO47: =SUM(BO43:BO46) -> 0 | BP47: 0 | BQ47: 0 | BR47: 0 | BS47: 0 | BU47: 160020 | BV47: 0 | BW47: 160020
B49: TITOLO 5 - Chiusura Anticipazioni ricevute da istituto
A50: 501 | B50: Chiusura Anticipazioni ricevute da istituto tesoriere/cassiere | C50: 0 | D50: 0 | E50: 0 | F50: 0 | G50: 0 | H50: 0 | I50: 0 | J50: 0 | K50: 0 | L50: 0 | M50: 0 | N50: 0 | O50: 0 | P50: 0 | Q50: 0 | R50: 0 | S50: 0 | T50: 0 | U50: 0 | V50: 0 | W50: 0 | X50: 0 | Y50: 0 | Z50: 0 | AA50: 0 | AB50: 0 | AC50: 0 | AD50: 0 | AE50: 0 | AF50: 0 | AG50: 0 | AH50: 0 | AI50: 0 | AJ50: 0 | AK50: 0 | AL50: 0 | AM50: 0 | AN50: 0 | AO50: 0 | AP50: 0 | AQ50: 0 | AR50: 0 | AS50: 0 | AT50: 0 | AU50: 0 | AV50: 0 | AW50: 0 | AX50: 0 | AY50: 0 | AZ50: 0 | BA50: 0 | BB50: 0 | BC50: 0 | BD50: 0 | BE50: 0 | BF50: 0 | BG50: 0 | BH50: 0 | BI50: 0 | BJ50: 0 | BK50: 0 | BL50: 0 | BM50: 0 | BN50: 0 | BO50: 0 | BP50: 0 | BQ50: 0 | BR50: 0 | BS50: 0 | BU50: =+C50+F50+I50+L50+O50+R50+U50+X50+AA50+AD50+AG50+AJ50+AM50+AP50+AS50+AV50+AY50+BB50+BE50+BH50+BK50+BN50+BQ50 -> 0 | BV50: 0 | BW50: 0
A51: 500 | B51: TOTALE TITOLO 5 | C51: =SUM(C50) -> 0 | D51: 0 | E51: 0 | F51: 0 | G51: 0 | H51: 0 | I51: 0 | J51: 0 | K51: 0 | L51: 0 | M51: 0 | N51: 0 | O51: 0 | P51: 0 | Q51: 0 | R51: 0 | S51: 0 | T51: 0 | U51: 0 | V51: 0 | W51: 0 | X51: 0 | Y51: 0 | Z51: 0 | AA51: 0 | AB51: 0 | AC51: 0 | AD51: 0 | AE51: 0 | AF51: 0 | AG51: 0 | AH51: 0 | AI51: 0 | AJ51: 0 | AK51: 0 | AL51: 0 | AM51: 0 | AN51: 0 | AO51: 0 | AP51: 0 | AQ51: 0 | AR51: 0 | AS51: 0 | AT51: 0 | AU51: 0 | AV51: 0 | AW51: 0 | AX51: 0 | AY51: 0 | AZ51: 0 | BA51: 0 | BB51: 0 | BC51: 0 | BD51: 0 | BE51: 0 | BF51: 0 | BG51: 0 | BH51: 0 | BI51: 0 | BJ51: 0 | BK51: 0 | BL51: 0 | BM51: 0 | BN51: 0 | BO51: =SUM(BO50) -> 0 | BP51: =SUM(BP50) -> 0 | BQ51: =SUM(BQ50) -> 0 | BR51: =SUM(BR50) -> 0 | BS51: =SUM(BS50) -> 0 | BU51: 0 | BV51: 0 | BW51: 0
B53: TITOLO 7 - Uscite per conto terzi e partite di giro
A54: 701 | B54: Uscite per partite di giro | C54: 0 | D54: 0 | E54: 0 | F54: 0 | G54: 0 | H54: 0 | I54: 0 | J54: 0 | K54: 0 | L54: 0 | M54: 0 | N54: 0 | O54: 0 | P54: 0 | Q54: 0 | R54: 0 | S54: 0 | T54: 0 | U54: 0 | V54: 0 | W54: 0 | X54: 0 | Y54: 0 | Z54: 0 | AA54: 0 | AB54: 0 | AC54: 0 | AD54: 0 | AE54: 0 | AF54: 0 | AG54: 0 | AH54: 0 | AI54: 0 | AJ54: 0 | AK54: 0 | AL54: 0 | AM54: 0 | AN54: 0 | AO54: 0 | AP54: 0 | AQ54: 0 | AR54: 0 | AS54: 0 | AT54: 0 | AU54: 0 | AV54: 0 | AW54: 0 | AX54: 0 | AY54: 0 | AZ54: 0 | BA54: 0 | BB54: 0 | BC54: 0 | BD54: 0 | BE54: 0 | BF54: 0 | BG54: 0 | BH54: 0 | BI54: 0 | BJ54: 0 | BK54: 0 | BL54: 0 | BM54: 0 | BN54: 0 | BO54: 0 | BP54: 0 | BQ54: 892764.87 | BR54: 0 | BS54: 996199.73 | BU54: =+C54+F54+I54+L54+O54+R54+U54+X54+AA54+AD54+AG54+AJ54+AM54+AP54+AS54+AV54+AY54+BB54+BE54+BH54+BK54+BN54+BQ54 -> 892764.87 | BV54: 0 | BW54: 996199.73
A55: =A54 + 1 -> 702 | B55: Uscite per conto terzi | C55: 0 | D55: 0 | E55: 0 | F55: 0 | G55: 0 | H55: 0 | I55: 0 | J55: 0 | K55: 0 | L55: 0 | M55: 0 | N55: 0 | O55: 0 | P55: 0 | Q55: 0 | R55: 0 | S55: 0 | T55: 0 | U55: 0 | V55: 0 | W55: 0 | X55: 0 | Y55: 0 | Z55: 0 | AA55: 0 | AB55: 0 | AC55: 0 | AD55: 0 | AE55: 0 | AF55: 0 | AG55: 0 | AH55: 0 | AI55: 0 | AJ55: 0 | AK55: 0 | AL55: 0 | AM55: 0 | AN55: 0 | AO55: 0 | AP55: 0 | AQ55: 0 | AR55: 0 | AS55: 0 | AT55: 0 | AU55: 0 | AV55: 0 | AW55: 0 | AX55: 0 | AY55: 0 | AZ55: 0 | BA55: 0 | BB55: 0 | BC55: 0 | BD55: 0 | BE55: 0 | BF55: 0 | BG55: 0 | BH55: 0 | BI55: 0 | BJ55: 0 | BK55: 0 | BL55: 0 | BM55: 0 | BN55: 0 | BO55: 0 | BP55: 0 | BQ55: 121358.83 | BR55: 0 | BS55: 230758.16 | BU55: 121358.83 | BV55: 0 | BW55: 230758.16
A56: 700 | B56: TOTALE TITOLO 7 | C56: =SUM(C54:C55) -> 0 | D56: 0 | E56: 0 | F56: 0 | G56: 0 | H56: 0 | I56: 0 | J56: 0 | K56: 0 | L56: 0 | M56: 0 | N56: 0 | O56: 0 | P56: 0 | Q56: 0 | R56: 0 | S56: 0 | T56: 0 | U56: 0 | V56: 0 | W56: 0 | X56: 0 | Y56: 0 | Z56: 0 | AA56: 0 | AB56: 0 | AC56: 0 | AD56: 0 | AE56: 0 | AF56: 0 | AG56: 0 | AH56: 0 | AI56: 0 | AJ56: 0 | AK56: 0 | AL56: 0 | AM56: 0 | AN56: 0 | AO56: 0 | AP56: 0 | AQ56: 0 | AR56: 0 | AS56: 0 | AT56: 0 | AU56: 0 | AV56: 0 | AW56: 0 | AX56: 0 | AY56: 0 | AZ56: 0 | BA56: 0 | BB56: 0 | BC56: 0 | BD56: 0 | BE56: 0 | BF56: 0 | BG56: 0 | BH56: 0 | BI56: 0 | BJ56: 0 | BK56: 0 | BL56: 0 | BM56: 0 | BN56: 0 | BO56: =SUM(BO54:BO55) -> 0 | BP56: =SUM(BP54:BP55) -> 0 | BQ56: =SUM(BQ54:BQ55) -> 1014123.7 | BR56: =SUM(BR54:BR55) -> 0 | BS56: =SUM(BS54:BS55) -> 1226957.89 | BU56: 1014123.7 | BV56: 0 | BW56: 1226957.89
B57: TOTALE MISSIONI - TOTALE GENERALE DELLE SPESE | C57: =+C25+C33+C40+C47+C51+C56 -> 2793628.52 | D57: 198749.65 | E57: 2777249.96 | F57: 0 | G57: 0 | H57: 0 | I57: 324006.71 | J57: 0 | K57: 149190.86 | L57: 2374158.22 | M57: 8627.79 | N57: 1544756.89 | O57: 721788.61 | P57: 301323 | Q57: 571328.51 | R57: 108021 | S57: 0 | T57: 96321 | U57: 63532.83 | V57: 0 | W57: 69759.28 | X57: 1081805.98 | Y57: 237043.43 | Z57: 465358.9 | AA57: 430388.65 | AB57: 0 | AC57: 491858.45 | AD57: 787473.98 | AE57: 0 | AF57: 828437.22 | AG57: 1386119.73 | AH57: 1659613.02 | AI57: 1535294.03 | AJ57: 2408977.4 | AK57: 0 | AL57: 1534201.43 | AM57: 54562.37 | AN57: 0 | AO57: 24836.06 | AP57: 55984.15 | AQ57: 0 | AR57: 122708.15 | AS57: 4500 | AT57: 0 | AU57: 38.56 | AV57: 0 | AW57: 0 | AX57: 0 | AY57: 0 | AZ57: 0 | BA57: 0 | BB57: 23587 | BC57: 0 | BD57: 78097 | BE57: 0 | BF57: 0 | BG57: 0 | BH57: 0 | BI57: 0 | BJ57: 0 | BK57: 160020 | BL57: 0 | BM57: 160020 | BN57: 0 | BO57: =+BO25+BO33+BO40+BO47+BO51+BO56 -> 0 | BP57: 0 | BQ57: 1014123.7 | BR57: 0 | BS57: 1226957.89 | BU57: =+BT12+BU25+BU33+BU40+BU47+BU51+BU56 -> 13792678.85 | BV57: 2405356.89 | BW57: 11676414.19
B58: AVANZO FORMATOSI NELL'ESERCIZIO/FONDO DI CASSA (Totale generale delle entrate - Totale generale delle spese) | C58: 0 | D58: 0 | E58: 0 | F58: 0 | G58: 0 | H58: 0 | I58: 0 | J58: 0 | K58: 0 | L58: 0 | M58: 0 | N58: 0 | O58: 0 | P58: 0 | Q58: 0 | R58: 0 | S58: 0 | T58: 0 | U58: 0 | V58: 0 | W58: 0 | X58: 0 | Y58: 0 | Z58: 0 | AA58: 0 | AB58: 0 | AC58: 0 | AD58: 0 | AE58: 0 | AF58: 0 | AG58: 0 | AH58: 0 | AI58: 0 | AJ58: 0 | AK58: 0 | AL58: 0 | AM58: 0 | AN58: 0 | AO58: 0 | AP58: 0 | AQ58: 0 | AR58: 0 | AS58: 0 | AT58: 0 | AU58: 0 | AV58: 0 | AW58: 0 | AX58: 0 | AY58: 0 | AZ58: 0 | BA58: 0 | BB58: 0 | BC58: 0 | BD58: 0 | BE58: 0 | BF58: 0 | BG58: 0 | BH58: 0 | BI58: 0 | BJ58: 0 | BK58: 0 | BL58: 0 | BM58: 0 | BN58: 0 | BO58: 0 | BP58: 0 | BQ58: 0 | BR58: 0 | BS58: 0 | BU58: =IF(Entrate!C69>BU57,Entrate!C69-BU57,0) -> 4035800.85 | BV58: 0 | BW58: =IF(Entrate!D69>BW57,Entrate!D69-BW57,0) -> 8859687.33
